fUST/lending_fUST_20240320
["ID","MTS","AMOUNT","RATE_DAILY","PERIOD"]
[319574347,1710875375182,-500.0,0.0003425,7]
[319574348,1710875375205,-500.0,0.0003425,7]
[319574349,1710875375227,-500.0,0.0003425,7]
[319574350,1710875375249,-500.0,0.0003425,7]
[319574351,1710875375272,-500.0,0.0003425,7]
[319574352,1710875375294,-500.0,0.0003425,7]
[319574353,1710875375315,-500.0,0.0003425,7]
[319574354,1710875375335,-500.0,0.0003425,7]
[319574355,1710875375356,-500.0,0.0003425,7]
[319574356,1710875375378,-500.0,0.0003425,7]
[319574357,1710875375398,-500.0,0.0003425,7]
[319574358,1710875375417,-500.0,0.0003425,7]
[319574359,1710875375439,-7026.08918354,0.00034251,2]
[319574418,1710875432286,-725.64438148,0.00033907,4]
[319574420,1710875432295,-2771.64731574,0.00033908,120]
[319574422,1710875432307,-2228.35268426,0.00033908,120]
[319574424,1710875432316,-17562.09744137,0.00034251,2]
[319574426,1710875432327,-311.81337509,0.00034251,2]
[319574428,1710875432336,-166.666666,0.00034582,2]
[319574430,1710875432345,-166.666666,0.00035434,2]
[319574432,1710875432354,-648.235618,0.00035616,120]
[319574434,1710875432363,-166.666666,0.00036287,2]
[319574436,1710875432373,-166.666666,0.00037139,2]
[319574438,1710875432382,-619.0,0.00037674,3]
[319574439,1710875432393,-1000.0,0.00039627,2]
[319574441,1710875432403,-199.1940513,0.000398,2]
[319574443,1710875432412,-648.235618,0.00041553,120]
[319574445,1710875432421,-1000.0,0.00042409,2]
[319574446,1710875432431,-1000.0,0.00045508,2]
[319574448,1710875432440,-1547.87670734,0.00045545,120]
[319574450,1710875432456,-5750.12329266,0.00045545,120]
[319574452,1710875432465,-466.52738166,0.00046605,30]
[319574453,1710875432476,-1533.47261834,0.00046605,30]
[319574455,1710875432485,-2000.0,0.000473,30]
[319574457,1710875432494,-648.235618,0.00047489,120]
[319574458,1710875432503,-621.99169794,0.00047994,4]
[319574460,1710875432512,-2000.0,0.00047995,30]
[319574462,1710875432521,-1000.0,0.00048045,120]
[319574464,1710875432530,-195.219154,0.00048175,2]
[319574465,1710875432539,-152.0,0.00048466,30]
[319574467,1710875432548,-2000.0,0.00048689,30]
[319574468,1710875432557,-152.0,0.0004874,30]
[319574469,1710875432567,-154.0,0.00049014,30]
[319574470,1710875432576,-1497.600452,0.00049383,30]
[319574472,1710875432587,-502.399548,0.00049383,30]
[319574473,1710875432596,-155.29322121,0.00049492,2]
[319574474,1710875432605,-155.41884066,0.0004999,4]
[319574475,1710875432614,-583.9242288,0.0005,30]
[319574476,1710875432624,-31.69786779,0.0005,2]
[319574498,1710875438305,-1771.02776889,0.0005,2]
[319574499,1710875438315,-1548.97223115,0.0005,120]
[319574500,1710875438963,-3522.23318181,0.0005,120]
[319574501,1710875438974,-3000.0,0.00050535,10]
[319574502,1710875438983,-1000.0,0.00050536,120]
[319574503,1710875438992,-171.53793593,0.00050722,3]
[319574504,1710875439001,-177.54337661,0.0005091,2]
[319574505,1710875439011,-645.97921604,0.00050912,2]
[319574506,1710875439020,-177.54337658,0.00050959,2]
[319574507,1710875439029,-1000.0,0.00050985,14]
[319574508,1710875439038,-859.5436785,0.00050985,14]
[319574509,1710875439050,-416.0,0.00051,30]
[319574510,1710875439059,-441.0,0.00051,14]
[319574511,1710875439068,-500.0,0.00051,30]
[319574512,1710875439078,-177.54337658,0.00051008,2]
[319574513,1710875439087,-2536.13197813,0.0005101,120]
[319574514,1710875439096,-546.94158929,0.0005101,4]
[319574515,1710875439105,-534.20265257,0.0005101,4]
[319574516,1710875439115,-181.31212658,0.0005101,4]
[319574517,1710875439124,-179.4971122,0.0005101,4]
[319574518,1710875439133,-732.7493681,0.0005101,4]
[319574519,1710875439142,-446.29300366,0.0005101,4]
[319574520,1710875439151,-302.10142248,0.0005101,4]
[319574521,1710875439161,-2484.09040037,0.0005101,2]
[319574522,1710875439170,-155.0,0.0005101,4]
[319574523,1710875439179,-248.29145079,0.0005101,2]
[319574524,1710875439194,-18.78599262,0.0005101,2]
[319574525,1710875439203,-286.01565808,0.0005101,4]
[319574526,1710875439212,-506.30350548,0.0005101,4]
[319574527,1710875439221,-226.86599612,0.0005101,4]
[319574528,1710875439231,-596.47713761,0.0005101,4]
[319574529,1710875439240,-9441.79249925,0.00051011,4]
[319574530,1710875439249,-500.0,0.00051011,120]
[319574531,1710875439258,-305.69536824,0.00051011,120]
[319574532,1710875439267,-238.8736304,0.00051011,120]
[319574533,1710875439277,-500.0,0.00051011,120]
[319574534,1710875439286,-114.84614071,0.00051011,120]
[319574535,1710875439301,-275.85599434,0.00051011,120]
[319574536,1710875439310,-633.48262614,0.00051011,120]
[319574537,1710875439320,-500.0,0.00051011,120]
[319574538,1710875439329,-500.0,0.00051011,120]
[319574539,1710875439338,-160.01155105,0.00051011,120]
[319574540,1710875439347,-2579.20639583,0.00051012,61]
[319574541,1710875439357,-1953.21946163,0.00051012,2]
[319574555,1710875440480,-179468.76372873,0.00051012,2]
[319574556,1710875440489,-1000.0,0.00051014,14]
[319574557,1710875440499,-177.54337658,0.00051056,2]
[319574558,1710875440510,-7952.92016184,0.00051059,10]
[319574559,1710875440520,-1000.0,0.00051059,14]
[319574560,1710875440529,-177.54337658,0.00051105,2]
[319574561,1710875440539,-24838.21533513,0.00051106,2]
[319574562,1710875440549,-346.81807174,0.0005111,4]
[319574563,1710875440558,-309.90079312,0.0005111,2]
[319574565,1710875440568,-3502.42389413,0.0005111,4]
[319574566,1710875440578,-1570.14224023,0.0005111,4]
[319574567,1710875440588,-236.41458362,0.0005111,4]
[319574568,1710875440598,-204.98847702,0.0005111,4]
[319574570,1710875440608,-211.58599706,0.0005111,4]
[319574572,1710875440618,-1345.60368921,0.0005111,4]
[319574574,1710875440627,-766.48927219,0.0005111,4]
[319574575,1710875440637,-1846.98850117,0.00051111,4]
[319574576,1710875440647,-719.88,0.00051111,21]
[319574577,1710875440657,-746.57804742,0.00051111,90]
[319574578,1710875440667,-9584.81,0.00051111,120]
[319574580,1710875440676,-7626.27203134,0.00051112,120]
[319574582,1710875440691,-10000.0,0.00051112,120]
[319574583,1710875440701,-10000.0,0.00051112,120]
[319574584,1710875440710,-10000.0,0.00051112,120]
[319574585,1710875440720,-10000.0,0.00051112,120]
[319574586,1710875440730,-10000.0,0.00051112,120]
[319574587,1710875440740,-10000.0,0.00051112,120]
[319574588,1710875440750,-10000.0,0.00051112,120]
[319574589,1710875440761,-10000.0,0.00051112,120]
[319574590,1710875440771,-10000.0,0.00051112,120]
[319574591,1710875440781,-10000.0,0.00051112,120]
[319574592,1710875440791,-10000.0,0.00051112,120]
[319574593,1710875440802,-10000.0,0.00051112,120]
[319574594,1710875440814,-10000.0,0.00051112,120]
[319574595,1710875440824,-5690.10727432,0.00051112,120]
[319574596,1710875440833,-154.86062544,0.00051112,4]
[319574597,1710875440843,-685.07492537,0.00051112,4]
[319574598,1710875440853,-1000.0,0.00051185,14]
[319574599,1710875440864,-248.0,0.00051193,35]
[319574600,1710875440874,-404.779735,0.000512,28]
[319574601,1710875440886,-150.5,0.00051203,35]
[319574602,1710875440895,-160.0,0.00051205,60]
[319574603,1710875440906,-160.0,0.00051205,60]
[319574604,1710875440915,-316.66012731,0.00051205,120]
[319574605,1710875440926,-278.141052,0.00051205,7]
[319574606,1710875440935,-1393.14511291,0.00051205,5]
[319574607,1710875440944,-645.740138,0.00051205,7]
[319574608,1710875440953,-645.740138,0.00051205,7]
[319574609,1710875440963,-645.740138,0.00051205,7]
[319574610,1710875440972,-645.740138,0.00051205,7]
[319574611,1710875440981,-645.740138,0.00051205,7]
[319574612,1710875440991,-645.740138,0.00051205,7]
[319574613,1710875441000,-645.740138,0.00051205,7]
[319574614,1710875441009,-645.740138,0.00051205,7]
[319574615,1710875441018,-2500.206007,0.00051205,7]
[319574616,1710875441028,-2500.206007,0.00051205,7]
[319574617,1710875441037,-2500.206007,0.00051205,7]
[319574618,1710875441046,-2500.206007,0.00051205,7]
[319574619,1710875441057,-2500.206007,0.00051205,7]
[319574620,1710875441066,-2500.206007,0.00051205,7]
[319574621,1710875441075,-2500.206007,0.00051205,7]
[319574622,1710875441085,-2500.206007,0.00051205,7]
[319574623,1710875441095,-221.474907,0.00051205,7]
[319574624,1710875441104,-254.485617,0.00051205,7]
[319574625,1710875441113,-254.485617,0.00051205,7]
[319574626,1710875441123,-254.485617,0.00051205,7]
[319574627,1710875441133,-254.485617,0.00051205,7]
[319574628,1710875441142,-254.485617,0.00051205,7]
[319574629,1710875441151,-254.485617,0.00051205,7]
[319574630,1710875441160,-254.485617,0.00051205,7]
[319574631,1710875441169,-254.485617,0.00051205,7]
[319574632,1710875441179,-151.0,0.00051205,7]
[319574633,1710875441188,-151.0,0.00051205,7]
[319574634,1710875441198,-151.0,0.00051205,7]
[319574635,1710875441207,-151.0,0.00051205,7]
[319574636,1710875441217,-151.0,0.00051205,7]
[319574637,1710875441226,-152.416661,0.00051205,7]
[319574638,1710875441235,-184.4457279,0.00051205,120]
[319574639,1710875441244,-151.0,0.00051206,7]
[319574640,1710875441253,-151.0,0.00051206,7]
[319574641,1710875441263,-151.0,0.00051206,7]
[319574642,1710875441272,-151.0,0.00051206,7]
[319574643,1710875441281,-151.0,0.00051206,7]
[319574644,1710875441290,-151.0,0.00051206,7]
[319574645,1710875441299,-7162.63018642,0.00051206,60]
[319574646,1710875441561,-1178.84811883,0.000495,120]
[319574647,1710875441572,-4159.28130699,0.00051206,60]
[319574648,1710875441583,-312.2633,0.00051206,60]
[319574649,1710875441594,-1271.94585601,0.00051206,60]
[319574650,1710875441604,-116487.79684735,0.00051206,60]
[319574651,1710875441616,-2457.93055425,0.00051206,60]
[319574664,1710875443314,-169.0329782,0.00034482,7]
[319574665,1710875443323,-536.55150611,0.00051206,60]
[319574666,1710875443335,-859.68153428,0.00051206,60]
[319574667,1710875443375,-37404.5100962,0.00051206,60]
[319574668,1710875443386,-517.5590053,0.00051206,60]
[319574669,1710875443396,-5018.61224055,0.00051206,60]
[319574670,1710875443434,-14610.09403018,0.00051206,60]
[319574671,1710875443446,-4956.34252284,0.00051206,60]
[319574682,1710875446403,-274.0945732,0.00051111,4]
[319574683,1710875446412,-265.29018593,0.00051206,60]
[319574700,1710875508966,-2000000.0,0.00051206,60]
[319574704,1710875578905,-1491.68029903,0.00024899,2]
[319574705,1710875578925,-178.31970097,0.00024999,2]
[319574706,1710875610244,154.86062544,0.00021249,2]
[319574707,1710875630243,284.74004214,0.00021249,2]
[319574709,1710875643032,-930.05833365,0.00024895,2]
[319574710,1710875643055,-154.86062544,0.00024896,2]
[319574711,1710875643076,-154.86062544,0.00024897,2]
[319574712,1710875643096,-807.12416191,0.00024897,2]
[319574713,1710875643116,-154.86062544,0.00024897,2]
[319574714,1710875643138,-154.86062544,0.00024998,2]
[319574715,1710875643159,-17.37500268,0.00024999,2]
[319574716,1710875648610,-1722.97289476,0.00024999,2]
[319574717,1710875648640,-82.03579628,0.00024999,2]
[319574718,1710875648655,-230.80480963,0.00024999,2]
[319574719,1710875648665,-361.06702469,0.00025,4]
[319574737,1710876008495,1016.54263681,0.00022994,2]
[319574738,1710876043935,-154.86062544,0.00024143,2]
[319574739,1710876043956,-597.13937456,0.00024144,2]
[319574741,1710876096121,-42.68775728,0.00024144,2]
[319574742,1710876096150,-328.50914105,0.00024999,2]
[319574747,1710876176021,-683.0,0.00024144,2]
[319574750,1710876306865,-2.07492537,0.00024144,2]
[319574751,1710876306891,-154.86062544,0.00024988,2]
[319574752,1710876306915,-366.55193549,0.00024988,2]
[319574753,1710876306937,-483.76292099,0.00024989,2]
[319574754,1710876306964,-157.48043496,0.00024989,2]
[319574755,1710876306990,-204.98847702,0.0002499,2]
[319574756,1710876307011,-597.00397515,0.00024991,2]
[319574757,1710876307038,-236.48109331,0.00024992,2]
[319574758,1710876307060,-596.01897216,0.00024992,2]
[319574759,1710876307082,-2072.77664011,0.00024992,2]
[319574760,1710876321060,-1570.60595844,0.00024991,2]
[319574761,1710876321095,-1430.6675549,0.00024992,2]
[319574762,1710876321129,-154.86062544,0.00024998,2]
[319574763,1710876321163,-410.54493733,0.00024999,2]
[319574766,1710876343161,-154.86062544,0.00029098,2]
[319574767,1710876343184,-993.63891505,0.00029099,4]
[319574768,1710876343207,-250.02509541,0.000291,2]
[319574776,1710876549106,-154.86062544,0.00029011,2]
[319574777,1710876549126,-4872.13937456,0.00029012,2]
[319574778,1710876549148,-1918.66759841,0.00029112,2]
[319574779,1710876549170,-545.04966652,0.00029113,10]
[319574780,1710876549191,-579.45613086,0.00031455,7]
[319574781,1710876549211,-547.659081,0.00031487,2]
[319574782,1710876549232,-166.666666,0.00032877,2]
[319574783,1710876549251,-354.061616,0.00033383,2]
[319574784,1710876549270,-127.80525331,0.00033694,2]
[319574785,1710876554112,-38.86141269,0.00033694,2]
[319574786,1710876554135,-579.45613086,0.00034202,7]
[319574787,1710876554159,-166.666666,0.00034511,2]
[319574788,1710876554194,-166.666666,0.00035328,2]
[319574789,1710876554219,-354.061616,0.0003572,2]
[319574790,1710876554242,-166.666666,0.00036145,2]
[319574791,1710876554267,-166.666666,0.00036963,2]
[319574792,1710876554291,-1461.534035,0.00038145,120]
[319574793,1710876554314,-195.219154,0.00038218,2]
[319574794,1710876554336,-216.78073414,0.000394,2]
[319574795,1710876554358,-154.86062544,0.0004,4]
[319574796,1710876554380,-154.86062544,0.0004,4]
[319574797,1710876554401,-242.0,0.00041145,3]
[319574798,1710876554427,-188.0,0.00041146,2]
[319574799,1710876554449,-12946.53504111,0.00041146,2]
[319574800,1710876556210,-11953.46495889,0.00041146,2]
[319574801,1710876556230,-9104.5386334,0.00041158,2]
[319574802,1710876556249,-11053.5905698,0.00041332,2]
[319574803,1710876556269,-403.13576749,0.00042584,4]
[319574804,1710876556290,-169.0329782,0.00042585,10]
[319574805,1710876556310,-430.1301591,0.00042685,2]
[319574806,1710876556331,-589.9573598,0.00043823,2]
[319574807,1710876556453,-188.0,0.00044146,2]
[319574808,1710876556474,-1461.534035,0.00044503,120]
[319574809,1710876556495,-178.484338,0.00044662,2]
[319574810,1710876556524,-550.95153161,0.00044864,120]
[319574811,1710876556550,-204.98847702,0.00045786,4]
[319574812,1710876556572,-184.74281357,0.00045787,4]
[319574813,1710876556594,-442.4655513,0.0004579,30]
[319574844,1710876632485,-1332.28760033,0.00045789,90]
[319574857,1710876632631,-193.45353602,0.00045789,90]
[319574859,1710876632641,-574.31863159,0.0004579,30]
[319574861,1710876632651,-1225.16230943,0.00046577,30]
[319574863,1710876632664,-774.83769057,0.00046577,30]
[319574865,1710876632674,-2000.0,0.00047161,30]
[319574867,1710876632684,-547.659081,0.0004723,2]
[319574868,1710876632694,-2000.0,0.00047744,30]
[319574870,1710876632704,-24900.0,0.00048074,2]
[319574871,1710876632713,-2000.0,0.00048328,30]
[319574872,1710876632723,-206.20639925,0.00048549,4]
[319574873,1710876632732,-336.61028602,0.00048644,4]
[319574874,1710876632745,-2000.0,0.00048911,30]
[319574875,1710876632754,-1457.15729931,0.00049106,2]
[319574876,1710876632763,-2000.0,0.00049391,2]
[319574877,1710876632772,-2420.776887,0.00049495,30]
[319574878,1710876632783,-12215.25435681,0.0005,10]
[319574879,1710876632793,-189.0,0.00050288,2]
[319574880,1710876632803,-2000.0,0.00050289,2]
[319574881,1710876632813,-610.68817012,0.00050684,31]
[319574882,1710876632823,-500.0,0.00050684,31]
[319574883,1710876632833,-501.98357693,0.00050684,31]
[319574884,1710876632843,-1723.03,0.00050684,31]
[319574885,1710876632853,-500.0,0.00050684,31]
[319574886,1710876632862,-1723.03,0.00050684,31]
[319574887,1710876632872,-500.0,0.00050684,31]
[319574888,1710876632881,-500.0,0.00050684,31]
[319574889,1710876632891,-500.0,0.00050684,31]
[319574890,1710876632900,-500.0,0.00050684,31]
[319574891,1710876632909,-500.0,0.00050684,31]
[319574892,1710876632919,-500.0,0.00050684,31]
[319574893,1710876632928,-500.0,0.00050684,31]
[319574894,1710876632937,-500.0,0.00050684,31]
[319574895,1710876632946,-500.0,0.00050684,31]
[319574896,1710876632955,-500.0,0.00050684,31]
[319574897,1710876632964,-500.0,0.00050684,31]
[319574898,1710876632973,-500.0,0.00050684,31]
[319574899,1710876632983,-500.0,0.00050684,31]
[319574900,1710876632997,-500.0,0.00050684,31]
[319574901,1710876633007,-573.2,0.00050684,31]
[319574902,1710876633017,-573.2,0.00050684,31]
[319574903,1710876633027,-573.2,0.00050684,31]
[319574904,1710876633040,-500.0,0.00050684,30]
[319574905,1710876633050,-501.49837736,0.00050684,31]
[319574906,1710876633060,-500.0,0.00050684,30]
[319574907,1710876633071,-500.0,0.00050684,30]
[319574908,1710876633082,-500.0,0.00050684,31]
[319574909,1710876633092,-500.0,0.00050684,31]
[319574910,1710876633101,-462.92624871,0.00050684,31]
[319574911,1710876633111,-500.0,0.00050684,31]
[319574912,1710876633120,-500.0,0.00050684,31]
[319574913,1710876633129,-500.0,0.00050684,31]
[319574914,1710876633139,-500.0,0.00050684,31]
[319574915,1710876633149,-500.0,0.00050684,31]
[319574916,1710876633159,-500.0,0.00050684,31]
[319574917,1710876633168,-500.0,0.00050684,31]
[319574918,1710876633178,-500.0,0.00050684,31]
[319574919,1710876633187,-656.78,0.00050684,31]
[319574920,1710876633196,-656.78,0.00050684,31]
[319574921,1710876633205,-656.78,0.00050684,31]
[319574922,1710876633214,-427.86662759,0.00050684,31]
[319574923,1710876633223,-892.17,0.00050684,31]
[319574924,1710876633232,-892.17,0.00050684,31]
[319574925,1710876633243,-892.17,0.00050684,31]
[319574926,1710876633252,-504.41246896,0.00050684,31]
[319574927,1710876633262,-500.0,0.00050684,31]
[319574928,1710876633272,-500.0,0.00050684,31]
[319574929,1710876633282,-500.0,0.00050684,31]
[319574930,1710876633292,-500.0,0.00050684,31]
[319574931,1710876633301,-500.0,0.00050684,31]
[319574932,1710876633311,-500.0,0.00050684,31]
[319574933,1710876633321,-500.0,0.00050684,31]
[319574934,1710876633331,-500.0,0.00050684,31]
[319574935,1710876633341,-500.0,0.00050684,31]
[319574936,1710876633351,-1072.08,0.00050684,31]
[319574938,1710876633361,-1072.08,0.00050684,31]
[319574939,1710876633371,-500.67078008,0.00050684,31]
[319574940,1710876633380,-500.0,0.00050684,31]
[319574941,1710876633389,-500.0,0.00050684,31]
[319574942,1710876633399,-501.86817326,0.00050684,31]
[319574943,1710876633409,-500.0,0.00050684,31]
[319574944,1710876633419,-500.0,0.00050684,31]
[319574945,1710876633428,-675.94,0.00050684,10]
[319574946,1710876633437,-675.94,0.00050684,10]
[319574947,1710876633447,-675.94,0.00050684,10]
[319574948,1710876633457,-500.0,0.00050684,31]
[319574949,1710876633467,-500.0,0.00050684,31]
[319574950,1710876633476,-219.30271839,0.00050684,31]
[319574951,1710876633487,-8927.74,0.00050684,31]
[319574952,1710876633497,-1461.534035,0.0005086,120]
[319574953,1710876633507,-2000.0,0.00050973,2]
[319574954,1710876633516,-183.76914639,0.00051005,2]
[319574955,1710876633526,-500.0,0.00051005,31]
[319574956,1710876633535,-500.0,0.00051005,31]
[319574957,1710876633544,-500.0,0.00051005,31]
[319574958,1710876633554,-500.0,0.00051005,31]
[319574959,1710876633563,-2531.08880696,0.00051005,2]
[319574960,1710876633573,-2797.25,0.00051005,31]
[319574961,1710876633582,-2797.25,0.00051005,31]
[319574962,1710876633592,-1000.0,0.00051006,2]
[319574963,1710876633601,-500.0,0.00051009,31]
[319574964,1710876633611,-500.0,0.00051009,31]
[319574965,1710876633621,-656.78,0.00051009,31]
[319574966,1710876633630,-322.50861399,0.00051009,4]
[319574967,1710876633640,-155.43185053,0.00051009,4]
[319574968,1710876633649,-500.0,0.00051009,31]
[319574969,1710876633659,-241.87327061,0.00051009,4]
[319574970,1710876633668,-500.0,0.0005101,31]
[319574971,1710876633678,-619.85357697,0.0005101,30]
[319574972,1710876633687,-500.0,0.0005101,31]
[319574973,1710876633696,-500.0,0.0005101,31]
[319574974,1710876633706,-500.0,0.0005101,31]
[319574975,1710876633715,-316.66012731,0.0005101,120]
[319574976,1710876633724,-13243.80959375,0.00051011,61]
[319574977,1710876633736,-500.0,0.00051011,31]
[319574978,1710876633745,-500.0,0.00051011,31]
[319574979,1710876633754,-500.0,0.00051011,31]
[319574980,1710876633764,-174.88,0.00051011,31]
[319574981,1710876633773,-299.65777501,0.00051011,31]
[319574982,1710876633782,-500.0,0.00051011,31]
[319574983,1710876633792,-500.0,0.00051011,31]
[319574984,1710876633801,-500.0,0.00051011,31]
[319574985,1710876633810,-500.0,0.00051011,31]
[319574986,1710876633819,-500.0,0.00051011,31]
[319574987,1710876633828,-500.0,0.00051011,31]
[319574988,1710876633838,-500.0,0.00051011,31]
[319574989,1710876633847,-500.0,0.00051011,31]
[319574990,1710876633856,-500.0,0.00051011,31]
[319574991,1710876633866,-500.0,0.00051011,31]
[319574992,1710876633875,-500.0,0.00051011,31]
[319574993,1710876633884,-500.0,0.00051011,31]
[319574994,1710876633894,-573.2,0.00051011,31]
[319574995,1710876633903,-573.2,0.00051011,31]
[319574996,1710876633913,-573.2,0.00051011,31]
[319574997,1710876633923,-573.2,0.00051011,31]
[319574998,1710876633934,-1661.64,0.00051011,31]
[319574999,1710876633945,-1661.64,0.00051011,31]
[319575000,1710876633956,-1661.64,0.00051011,31]
[319575001,1710876633966,-1661.64,0.00051011,31]
[319575002,1710876633977,-1661.64,0.00051011,31]
[319575003,1710876633986,-1661.64,0.00051011,31]
[319575004,1710876633996,-500.0,0.00051011,31]
[319575005,1710876634005,-500.0,0.00051011,31]
[319575006,1710876634014,-500.0,0.00051011,31]
[319575007,1710876634023,-500.0,0.00051011,31]
[319575008,1710876634033,-500.0,0.00051011,31]
[319575009,1710876634042,-500.0,0.00051011,31]
[319575010,1710876634051,-500.0,0.00051011,31]
[319575011,1710876634065,-500.0,0.00051011,31]
[319575012,1710876634074,-656.78,0.00051011,31]
[319575013,1710876634084,-153.00740718,0.00051011,31]
[319575014,1710876634125,-503.77259282,0.00051011,31]
[319575015,1710876634134,-656.78,0.00051011,31]
[319575016,1710876634144,-656.78,0.00051011,31]
[319575017,1710876634154,-40414.65,0.00051011,31]
[319575018,1710876634162,-36622.92080293,0.00051011,31]
[319575130,1710876639356,-154.86062544,0.0004579,4]
[319575131,1710876639365,-109.62534552,0.00048073,4]
[319575183,1710876640567,-212.88326847,0.00048073,4]
[319575184,1710876640576,-184.4457279,0.00050683,120]
[319575186,1710876640586,-500.0,0.00050684,31]
[319575188,1710876640595,-5585.32820129,0.00050684,31]
[319575191,1710876640629,-3342.41179871,0.00050684,31]
[319575193,1710876640639,-500.0,0.00050684,31]
[319575194,1710876640648,-500.0,0.00050684,31]
[319575195,1710876640657,-500.0,0.00050684,31]
[319575196,1710876640667,-500.0,0.00050684,31]
[319575197,1710876640677,-500.0,0.0005101,31]
[319575199,1710876640686,-500.0,0.0005101,31]
[319575201,1710876640696,-169.43820129,0.0005101,31]
[319575433,1710876646658,-5687.22,0.00050684,31]
[319575435,1710876646668,-500.0,0.00050684,31]
[319575437,1710876646678,-543.34,0.00050684,31]
[319575439,1710876646687,-500.0,0.00050684,31]
[319575441,1710876646696,-543.34,0.00050684,31]
[319575443,1710876646705,-330.56179871,0.0005101,31]
[319575445,1710876646714,-500.0,0.0005101,31]
[319575447,1710876646724,-500.0,0.0005101,31]
[319575449,1710876646734,-500.0,0.0005101,31]
[319575451,1710876646743,-500.0,0.0005101,31]
[319575453,1710876646754,-500.0,0.0005101,31]
[319575455,1710876646763,-153.095077,0.0005101,31]
[319575457,1710876646772,-74.05194591,0.0005101,31]
[319575858,1710876999899,-597.00397515,0.00026896,2]
[319575859,1710876999932,-154.86062544,0.00026897,2]
[319575860,1710876999966,-539.11925568,0.00026898,2]
[319575861,1710877000000,-1608.66817927,0.00026899,2]
[319575862,1710877000035,-1514.65979431,0.00026899,2]
[319575863,1710877037090,-157.48043496,0.00026896,2]
[319575864,1710877044240,-1954.1833345,0.00026907,2]
[319575865,1710877551111,-210.03373486,0.00026637,2]
[319575866,1710877551131,-454.94876626,0.00026638,2]
[319575867,1710877551151,-369.53118222,0.00041389,4]
[319575868,1710877596436,700.0,0.00024807,2]
[319575869,1710877605144,-1444.0,0.00024807,2]
[319575870,1710877653173,-62.10493175,0.00024807,2]
[319575871,1710877653194,-382.03971005,0.00029806,2]
[319575872,1710877653213,-2206.10493175,0.00029807,2]
[319575873,1710877653234,-396.171217,0.00040887,2]
[319575874,1710877653254,-458.29109137,0.00041389,4]
[319575875,1710877653274,-354.061616,0.0004139,2]
[319575876,1710877653294,-166.666666,0.00041712,2]
[319575877,1710877653321,-967.973793,0.00041825,120]
[319575878,1710877653342,-4646.42846617,0.00042168,2]
[319575885,1710877766103,-158.258108,0.00042106,2]
[319575886,1710877766124,-915.19227971,0.00042165,4]
[319575887,1710877766150,-550.0,0.00042166,3]
[319575888,1710877766172,-20253.57153383,0.00042168,2]
[319575889,1710877766194,-180.0,0.00042249,120]
[319575890,1710877766215,-4501.5496405,0.00042342,2]
[319575891,1710877766237,-166.666666,0.00042849,2]
[319575892,1710877766259,-234.75336,0.000431,2]
[319575893,1710877766281,-166.666666,0.00043986,2]
[319575894,1710877766303,-41117.12236124,0.00044,2]
[319575895,1710877766325,-322.50861399,0.00044286,4]
[319575896,1710877766347,-354.061616,0.00044287,2]
[319575897,1710877766372,-134.36488403,0.00045123,2]
[319575968,1710877832180,-32.30178197,0.00045123,2]
[319575970,1710877832189,-166.666666,0.00046261,2]
[319575972,1710877832199,-2000.0,0.00046376,30]
[319575974,1710877832209,-350.0,0.00046383,3]
[319575976,1710877832218,-2000.0,0.00047301,30]
[319575978,1710877832227,-166.666666,0.00047398,2]
[319575980,1710877832236,-1000.0,0.00047857,2]
[319575982,1710877832246,-2000.0,0.00048227,30]
[319575984,1710877832255,-967.973793,0.00048796,120]
[319575986,1710877832264,-472.76265755,0.00048907,4]
[319575988,1710877832274,-490.39652304,0.00048907,120]
[319575989,1710877832283,-13109.52337588,0.00048908,4]